fUST/lending_fUST_20240108
["ID","MTS","AMOUNT","RATE_DAILY","PERIOD"]
[310752360,1704705720788,-294.29289612,0.00025944,2]
[310752361,1704705720809,-112.9167143,0.00025945,2]
[310752365,1704705789662,-2033.84368768,0.00025944,2]
[310752366,1704705789686,-41.91297304,0.00025945,2]
[310752367,1704705789709,-350.24333928,0.00025945,2]
[310752375,1704705919923,-155.0,0.00025315,2]
[310752377,1704706053054,-11.666666,0.00025315,2]
[310752378,1704706053078,-172.97369267,0.00025615,2]
[310752379,1704706053100,-2730.8,0.00025704,3]
[310752380,1704706053121,-2275.67,0.00025704,3]
[310752381,1704706053142,-586.81733784,0.00025711,2]
[310752382,1704706053164,-2033.84368768,0.00025711,2]
[310752383,1704706053185,-2099.48989371,0.00025712,2]
[310752384,1704706053206,-1577.96610455,0.00025713,2]
[310752385,1704706053229,-523.2123088,0.00025713,2]
[310752386,1704706053250,-78327.93049688,0.00025714,2]
[310752387,1704706053272,-2928.427001,0.00025715,2]
[310752388,1704706053474,-2928.427001,0.00025715,2]
[310752389,1704706053498,-2928.427001,0.00025715,2]
[310752390,1704706053519,-2928.427001,0.00025715,2]
[310752391,1704706053542,-2699.92180787,0.00025715,2]
[310752392,1704706135312,-838.0,0.00024928,3]
[310752393,1704706135332,-154.82968734,0.00024934,2]
[310752394,1704706135353,-642.65877806,0.00024934,2]
[310752395,1704706135373,-1586.54763631,0.00024935,2]
[310752396,1704706135394,-2807.77525151,0.00024935,2]
[310752397,1704706135415,-3736.32709612,0.00024935,2]
[310752398,1704706135436,-2029.06228573,0.00024936,2]
[310752399,1704706135456,-15873.6712433,0.00024936,2]
[310752400,1704706135478,-21382.12802163,0.00024936,2]
[310752483,1704706232029,-1575.24028985,0.00024802,2]
[310752484,1704706232039,-343.85410073,0.00024803,2]
[310752485,1704706232049,-360.56828888,0.00024804,2]
[310752486,1704706232058,-946.54365024,0.00024804,2]
[310752487,1704706232067,-8984.63948376,0.00024804,2]
[310752488,1704706232093,-11867.86754677,0.00024804,2]
[310752489,1704706232102,-3476.43711676,0.00024805,2]
[310752490,1704706232111,-164.84804974,0.00024805,2]
[310752491,1704706232121,-2748.55356867,0.00024805,2]
[310752492,1704706232133,-13125.11767463,0.00024805,2]
[310752493,1704706232142,-2634.26674675,0.00024806,2]
[310752494,1704706232152,-2507.77928787,0.00024806,2]
[310752496,1704706232161,-553.89631554,0.00024806,2]
[310752497,1704706232171,-586.81733784,0.00024807,2]
[310752499,1704706232180,-289.97202126,0.00024807,2]
[310752501,1704706232189,-5000.0,0.00024807,5]
[310752503,1704706232199,-155.37864254,0.0002481,2]
[310752504,1704706232208,-946.25,0.00024914,3]
[310752505,1704706232218,-1709.34,0.00024914,3]
[310752506,1704706232228,-78327.93049688,0.00024924,2]
[310752507,1704706232238,-24294.25383912,0.00024934,2]
[310752508,1704706232247,-2806.42480714,0.00024935,2]
[310752509,1704706232257,-344.66444489,0.00024936,2]
[310752510,1704706232268,-7399.5147493,0.0002494,2]
[310752511,1704706232277,-1344.20991586,0.00025713,2]
[310752512,1704706232287,-228.50519313,0.00025715,2]
[310752513,1704706232297,-211.29574429,0.00025715,2]
[310752515,1704706232306,-37.68063014,0.00025946,2]
[310752517,1704706232316,-451.57405458,0.00026393,2]
[310752519,1704706232325,-268.8999641,0.00026394,2]
[310752521,1704706232334,-187.67060335,0.00027196,2]
[310752523,1704706232343,-309.65937468,0.00027297,2]
[310752525,1704706232353,-1290.44709012,0.00027297,2]
[310752527,1704706232363,-24900.0,0.00027299,2]
[310752529,1704706232373,-5274.97741579,0.00027511,2]
[310752531,1704706232382,-1318.65874907,0.00027511,2]
[310752533,1704706232392,-3944.35869155,0.00027511,2]
[310752535,1704706232401,-267.42846283,0.00029017,2]
[310752537,1704706232411,-404.18615616,0.00029027,2]
[310752539,1704706232420,-1212.41206683,0.00029027,2]
[310752541,1704706232430,-621.00151473,0.00029027,2]
[310752543,1704706232439,-245.65133887,0.00029028,2]
[310752545,1704706232449,-245.82782927,0.00031997,4]
[310752547,1704706232458,-263.7943585,0.00031997,4]
[310752549,1704706232468,-508.6242048,0.00031997,4]
[310752551,1704706232477,-230.29533204,0.00031997,4]
[310752553,1704706232487,-162.60202211,0.00031997,4]
[310752555,1704706232496,-376.50262285,0.00031997,4]
[310752557,1704706232505,-583.7747776,0.00031997,4]
[310752559,1704706232514,-223.92274302,0.00031998,4]
[310752561,1704706232526,-485.91924699,0.00031998,4]
[310752563,1704706232537,-3735.0637491,0.00031998,4]
[310752565,1704706232546,-1585.89399945,0.00031998,4]
[310752567,1704706232556,-2600.55177213,0.00031999,4]
[310752569,1704706232565,-20296.26863946,0.00032,5]
[310752571,1704706232575,-175.36639,0.00032607,2]
[310752573,1704706232585,-160.6611727,0.00033,2]
[310752603,1704706238250,-168.0904698,0.00031999,4]
[310752604,1704706238260,-218.57743521,0.00031999,4]
[310752605,1704706238269,-14.3388273,0.00033,2]
[310752606,1704706238281,-150.0,0.00033096,2]
[310752607,1704706238291,-1000.0,0.00034,7]
[310752608,1704706238301,-4000.0,0.00034521,2]
[310752609,1704706238310,-1332.9932487,0.00034896,4]
[310752610,1704706238319,-431.18055423,0.00034896,4]
[310752611,1704706238329,-2198.48438797,0.00034898,2]
[310752612,1704706238341,-1490.83107677,0.00034898,2]
[310752613,1704706238352,-59343.48861045,0.00034898,2]
[310752614,1704706238364,-1053.57465907,0.00034898,2]
[310752615,1704706238378,-625.08936744,0.00034898,2]
[310752621,1704706241664,-2179.31886334,0.00034898,2]
[310752622,1704706241675,-1732.60846416,0.00034898,2]
[310752623,1704706241686,-2914.17026195,0.00034898,2]
[310752624,1704706241697,-9073.5304607,0.00034898,2]
[310752625,1704706241708,-1901.62083929,0.00034898,2]
[310752680,1704706244665,-1424.45,0.00034888,3]
[310752682,1704706244674,-2506.96614449,0.00034897,4]
[310752684,1704706244683,-363.75392488,0.00034897,2]
[310752686,1704706244693,-1237.42787999,0.00034898,2]
[310752688,1704706244704,-21540.33850365,0.00034898,2]
[310752690,1704706244715,-5953.63656447,0.00034898,2]
[310752810,1704706250589,-1.6573165,0.00033849,10]
[310752811,1704706250604,-2012.51861045,0.00033849,10]
[310752816,1704706462209,-154.82968734,0.00024936,2]
[310752817,1704706462231,-260.82241338,0.00024937,2]
[310752818,1704706462250,-236.34998195,0.00024938,2]
[310752819,1704706462271,-326.5926711,0.00024938,2]
[310752820,1704706462291,-2707.3394266,0.00024938,2]
[310752821,1704706462311,-154.82968734,0.00024939,2]
[310752822,1704706462330,-253.44967928,0.00024939,2]
[310752823,1704706462355,-35.78645301,0.0002494,2]
[310752824,1704706531879,-154.82968734,0.00024838,2]
[310752825,1704706531900,-860.46618422,0.00024839,2]
[310752826,1704706531920,-255.21293154,0.00024839,2]
[310752827,1704706531940,-119.4911969,0.0002484,2]
[310752828,1704706598296,-853.21097928,0.00024735,2]
[310752829,1704706598317,-154.82968734,0.00024736,2]
[310752830,1704706598339,-964.1138573,0.00024736,2]
[310752831,1704706598359,-154.82968734,0.00024736,2]
[310752832,1704706598380,-399.84612211,0.00024736,2]
[310752833,1704706598400,-343.85410073,0.00024736,2]
[310752834,1704706598422,-157.15420997,0.00024737,2]
[310752835,1704706598442,-1194.60979452,0.0002476,2]
[310752836,1704706598462,-157.15420995,0.00024761,2]
[310752837,1704706598484,-157.15420995,0.00024785,2]
[310752838,1704706598506,-157.15420995,0.00024809,2]
[310752839,1704706598527,-2310.31,0.00024826,3]
[310752840,1704706598548,-1349.2,0.00024828,3]
[310752841,1704706598569,-13686.47755928,0.00024832,2]
[310752842,1704706598591,-157.15420995,0.00024833,2]
[310752843,1704706598611,-36811.04917865,0.00024833,2]
[310752844,1704706598632,-7940.29516703,0.00024834,2]
[310752845,1704706598654,-2634.26674675,0.00024835,2]
[310752846,1704706598675,-1172.14414578,0.00024836,2]
[310752847,1704706598695,-608.19192412,0.00024836,2]
[310752848,1704706952886,-1030.14329585,0.00021948,2]
[310752849,1704706952909,-226.45618843,0.00021949,2]
[310752850,1704706952930,-200.0,0.00022046,2]
[310752851,1704706952950,-508.79855076,0.00022046,2]
[310752852,1704706952971,-2992.99968739,0.00022046,2]
[310752853,1704706952991,-7940.29516703,0.00022047,2]
[310752854,1704706953012,-676.65162341,0.00022047,2]
[310752855,1704706953034,-3136.65548713,0.00022047,2]
[310752856,1704707023549,-2013.43,0.00021932,3]
[310752857,1704707023570,-1586.54763631,0.00021941,2]
[310752858,1704707023591,-1239.33609761,0.00021941,2]
[310752859,1704707023612,-261.65970793,0.00021941,2]
[310752860,1704707023634,-154.82968734,0.00021941,2]
[310752861,1704707023654,-2507.77928787,0.00021942,2]
[310752862,1704707023821,-15873.6712433,0.00021942,2]
[310752863,1704707023843,-36362.74633964,0.00021942,2]
[310752864,1704707090794,-2507.77928787,0.00021926,2]
[310752865,1704707090816,-7552.78653652,0.00021926,2]
[310752866,1704707090838,-239.40343983,0.00021936,2]
[310752867,1704707090861,-230.38355805,0.00021937,2]
[310752868,1704707090883,-10851.64717773,0.00021937,2]
[310752869,1704707104172,1348.27133825,0.00019742,2]
[310752870,1704707138438,298.04086019,0.00019742,2]
[310752871,1704707140629,1523.21939939,0.00019742,2]
[310752872,1704707140738,1033.54283306,0.00019742,2]
[310752873,1704707140774,619.20574797,0.00019742,2]
[310752874,1704707152407,400.42969659,0.00019742,2]
[310752875,1704707155357,-245.94314602,0.00021913,2]
[310752876,1704707155545,-586.81733784,0.00021914,2]
[310752877,1704707155566,-872.16543446,0.00021914,2]
[310752878,1704707155588,-162.6816687,0.00021914,2]
[310752879,1704707155607,-2029.06228573,0.00021914,2]
[310752880,1704707155628,-264.75182318,0.00021914,2]
[310752881,1704707155649,-1320.57830407,0.00021915,3]
[310752882,1704707156635,1523.21939939,0.00019742,2]
[310752883,1704707156734,1033.54283306,0.00019742,2]
[310752884,1704707158765,407.37354219,0.00019742,2]
[310752885,1704707176735,1033.54283306,0.00019742,2]
[310752886,1704707178639,281.15747174,0.00019742,2]
[310752901,1704707196745,1033.54283306,0.00019742,2]
[310752921,1704707220739,514.08354575,0.00019742,2]
[310752947,1704707372850,1033.24027692,0.00020797,5]
[310752948,1704707373135,-2882.725963,0.00020295,2]
[310752949,1704707373161,-2882.725963,0.00020295,2]
[310752950,1704707373182,-2882.725963,0.00020295,2]
[310752951,1704707373203,-964.1138573,0.00020797,2]
[310752952,1704707373223,-245.72874804,0.00020798,2]
[310752953,1704707373245,-130.61575269,0.00020798,2]
[310752957,1704707402853,5000.0,0.00020172,5]
[310752993,1704707432195,-294.29289612,0.00020291,2]
[310752995,1704707432205,-508.79855076,0.00020291,2]
[310752997,1704707432215,-2070.06073993,0.00020291,2]
[310753002,1704707432257,-8423.00125855,0.00020291,2]
[310753004,1704707432266,-1239.33609761,0.00020291,2]
[310753006,1704707432276,-3736.32709612,0.00020291,2]
[310753008,1704707432285,-261.65970793,0.00020292,2]
[310753010,1704707432294,-2033.84368768,0.00020292,2]
[310753012,1704707432303,-212.86429376,0.00020293,2]
[310753015,1704707432313,-525.41351867,0.00020293,2]
[310753016,1704707432321,-560.22977717,0.00020294,2]
[310753019,1704707432333,-13686.47755928,0.00020294,2]
[310753021,1704707432342,-2882.725963,0.00020295,2]
[310753023,1704707432352,-2882.725963,0.00020295,2]
[310753025,1704707432361,-2343.67,0.00020788,3]
[310753027,1704707432371,-1953.06,0.00020788,3]
[310753029,1704707432380,-7861.30134799,0.00020795,2]
[310753031,1704707432390,-469.44638511,0.00020796,2]
[310753033,1704707432399,-2069.48614315,0.00020796,2]
[310753035,1704707432408,-154.82968734,0.00020796,2]
[310753037,1704707432417,-73153.76960839,0.00020798,2]
[310753240,1704707445322,-469.09454079,0.00020797,2]
[310753241,1704707445333,-54.66902241,0.00020798,2]
[310753242,1704707445346,-490.08910451,0.00020798,2]
[310753243,1704707445382,-4629.40276157,0.00020798,2]
[310753244,1704707445392,-284.664417,0.00020802,2]
[310753245,1704707445402,-629.89036083,0.00021791,2]
[310753246,1704707445414,-113.62576705,0.00021791,2]
[310753261,1704707445813,-132.10298099,0.00021791,2]
[310753262,1704707445823,-320.18062096,0.00021811,2]
[310753263,1704707445832,-1717.99813498,0.00021921,2]
[310753264,1704707445845,-310.32897862,0.00021921,2]
[310753265,1704707445854,-162.6816687,0.00021921,2]
[310753266,1704707445984,-200.13318244,0.00021921,2]
[310753267,1704707445994,-264.66072966,0.00021921,2]
[310753268,1704707446005,-872.16543446,0.00021921,2]
[310753269,1704707446014,-245.94314602,0.00021921,2]
[310753270,1704707446023,-882.0948696,0.00021921,2]
[310753271,1704707446035,-1185.78238433,0.00021921,2]
[310753272,1704707446044,-560.22977717,0.00021922,2]
[310753273,1704707446053,-508.6242048,0.00021922,2]
[310753274,1704707446062,-120.454696,0.00021922,2]
[310753275,1704707446073,-1144.88445199,0.00021922,2]
[310753276,1704707446085,-2469.72460111,0.00021922,2]
[310753277,1704707446094,-6849.72540189,0.00021922,2]
[310753278,1704707446232,-3631.32655119,0.00021922,2]
[310753279,1704707446243,-35832.87291736,0.00021923,2]
[310753281,1704707446253,-230.38355805,0.00021935,2]
[310753283,1704707446263,-471.74172218,0.00021935,2]
[310753284,1704707446273,-329.69845621,0.00021935,2]
[310753285,1704707446283,-1586.54763631,0.0002194,2]
[310753287,1704707446293,-154.87609295,0.0002194,2]
[310753288,1704707446303,-6410.39213991,0.0002194,2]
[310753290,1704707446320,-569.36937212,0.0002194,2]
[310753292,1704707446332,-404.01179138,0.0002194,2]
[310753294,1704707446345,-3481.85828994,0.0002194,2]
[310753295,1704707446355,-155.37405527,0.00021942,2]
[310753297,1704707446365,-2099.48989371,0.00022044,2]
[310753298,1704707446375,-2382.60439187,0.00022045,2]
[310753299,1704707446384,-973.03500616,0.0002205,2]
[310753300,1704707446394,-166.666666,0.00023102,2]
[310753302,1704707446403,-1796.83368269,0.00023501,2]
[310753307,1704707446926,-839.89722341,0.00023501,2]
[310753308,1704707446935,-17488.80603632,0.00023501,2]
[310753309,1704707446947,-472.55486556,0.00023501,2]
[310753313,1704707531857,-268.99570338,0.00021918,2]
[310753314,1704707531878,-1030.14329585,0.00021918,2]
[310753315,1704707531901,-676.65162341,0.00021918,2]
[310753316,1704707531924,-154.82968734,0.00021919,2]
[310753317,1704707531944,-154.82968734,0.00021919,2]
[310753318,1704707531965,-1108.16408823,0.00021919,2]
[310753319,1704707531987,-154.82968734,0.0002192,2]
[310753320,1704707532008,-3323.81401264,0.0002192,2]
[310753321,1704707532029,-2807.77525151,0.0002192,2]
[310753322,1704707532050,-1736.56137293,0.0002192,2]
[310753323,1704707532070,-1194.60979452,0.0002192,2]
[310753324,1704707532091,-1238.48160041,0.00021921,2]
[310753325,1704707532111,-356.90542421,0.00021921,2]
[310753326,1704707532132,-294.29289612,0.00021921,2]
[310753327,1704707532153,-1383.11587477,0.00021922,2]
[310753328,1704707543471,268.80422482,0.0002,2]
[310753329,1704707609865,-2511.34591178,0.00021903,2]
[310753330,1704707609887,-253.44967928,0.00021903,2]
[310753331,1704707609908,-2237.47,0.00021904,3]
[310753332,1704707609929,-343.85410073,0.00021909,2]
[310753333,1704707609950,-154.82968734,0.00021909,2]
[310753334,1704707609971,-553.89631554,0.0002191,2]
[310753335,1704707609992,-525.41351867,0.0002191,2]
[310753336,1704707610012,-154.82968734,0.0002191,2]
[310753337,1704707610031,-322.26268464,0.0002191,2]
[310753338,1704707610051,-289.97202126,0.00021911,2]
[310753339,1704707610071,-2033.84368768,0.00021911,2]
[310753340,1704707610090,-261.65970793,0.00021911,2]
[310753341,1704707610110,-2992.99968739,0.00021911,2]
[310753342,1704707610257,-154.82968734,0.00021912,2]
[310753343,1704707610278,-245.72874804,0.00021912,2]
[310753344,1704707610298,-326.5926711,0.00021912,2]
[310753345,1704707610318,-190.9274286,0.00021913,2]
[310753346,1704707610337,-255.21293154,0.00021913,2]
[310753347,1704707610357,-154.82968734,0.00021913,2]
[310753348,1704707610377,-2634.26674675,0.00021913,2]
[310753349,1704707610396,-853.21097928,0.00021913,2]
[310753350,1704707610416,-520.7402291,0.00021913,2]
[310753351,1704707610447,-301.18213313,0.00021913,2]
[310753352,1704707610466,-7861.30134799,0.00021913,2]
[310753353,1704707610486,-236.34998195,0.00021914,2]
[310753354,1704707610507,-860.46618422,0.00021914,2]
[310753355,1704707610528,-464.56640573,0.00021914,2]
[310753356,1704707610550,-260.82241338,0.00021914,2]
[310753357,1704707610579,-399.84612211,0.00021914,2]
[310753358,1704707610600,-4786.33430996,0.00021914,2]
[310753359,1704707610642,-46184.96530286,0.00021914,2]
[310753363,1704707681699,-178.44439822,0.00020639,2]
[310753364,1704707681720,-1194.60979452,0.00020639,2]
[310753365,1704707681740,-154.82968734,0.00020639,2]
[310753366,1704707681764,-260.82241338,0.00020639,2]
[310753367,1704707681786,-399.84612211,0.0002064,2]
[310753368,1704707681806,-175.203034,0.00020641,2]
[310753369,1704707681828,-2707.3394266,0.000209,2]
[310753370,1704707681848,-1172.14414578,0.00020901,2]
[310753371,1704707681870,-1553.8,0.00020902,3]
[310753372,1704707681893,-1294.83,0.00020902,3]
[310753373,1704707681913,-1079.02,0.00020902,3]
[310753374,1704707681934,-1864.56,0.00020903,3]
[310753375,1704707681954,-313.3559198,0.00020908,2]
[310753376,1704707681974,-19652.00978735,0.0002091,2]
[310753377,1704707681999,-2099.48989371,0.0002091,2]
[310753378,1704707682020,-23801.02066394,0.00020911,2]
[310753379,1704707682040,-13686.47755928,0.00020912,2]
[310753380,1704707682061,-7940.29516703,0.00020912,2]
[310753381,1704707682083,-24047.90198694,0.00020913,2]
[310753382,1704707704241,7552.78653652,0.00018809,2]
[310753383,1704707721738,284.664417,0.00019779,2]
[310753384,1704707793831,1003.4391307,0.00019789,2]
[310753385,1704707990260,839.8972234,0.000195,2]
[310753386,1704708051668,24900.0,0.00019481,2]
[310753388,1704708235558,757.20968572,0.00018328,2]
[310753389,1704708490838,24900.0,0.00019275,2]
[310753390,1704708550118,-7940.29516703,0.00020207,2]
[310753391,1704708550141,-2634.26674675,0.00020208,2]
[310753392,1704708550174,-964.1138573,0.00020208,2]
[310753393,1704708550196,-253.44967928,0.00020208,2]
[310753394,1704708550217,-255.21293154,0.00020208,2]
[310753395,1704708550247,-154.82968734,0.00020208,2]
[310753396,1704708550275,-1212.38,0.00020209,3]
[310753397,1704708550297,-1010.32,0.00020209,3]
[310753398,1704708550319,-2033.84368768,0.00020212,2]
[310753399,1704708550342,-2507.77928787,0.00020212,2]
[310753400,1704708550363,-2992.99968739,0.00020212,2]
[310753401,1704708550385,-525.41351867,0.00020213,2]
[310753402,1704708550409,-154.82968734,0.00020213,2]
[310753403,1704708550431,-200.0,0.00020213,2]
[310753404,1704708550456,-2707.3394266,0.00020213,2]
[310753405,1704708550478,-676.65162341,0.00020214,2]
[310753406,1704708550497,-1030.14329585,0.00020215,2]
[310753407,1704708550520,-853.21097928,0.00020215,2]
[310753408,1704708550540,-154.82968734,0.00020215,2]
[310753409,1704708550560,-23801.02066394,0.00020215,2]
[310753410,1704708550581,-261.65970793,0.00020216,2]
[310753411,1704708550604,-508.79855076,0.00020216,2]
[310753412,1704708550626,-2534.5001267,0.00020216,2]
[310753451,1704708632402,-2189.0,0.0002001,2]
[310753453,1704708632414,-318.77928787,0.0002001,2]
[310753455,1704708632423,-1239.33609761,0.00020011,2]
[310753457,1704708632433,-245.94314602,0.00020012,2]
[310753459,1704708632442,-230.38355805,0.00020012,2]
[310753461,1704708632451,-178.44439822,0.00020013,2]
[310753463,1704708632460,-130.47351223,0.00020014,2]
[310753466,1704708632472,-15743.19773107,0.00020014,2]
[310753469,1704708632481,-36811.04917865,0.00020014,2]
[310753472,1704708632491,-7980.59976788,0.00020015,2]
[310753474,1704708632500,-1084.41,0.00020205,3]
[310753477,1704708632510,-903.67,0.00020205,3]
[310753480,1704708632520,-753.06,0.00020205,3]
[310753482,1704708632529,-21315.84705204,0.00020215,2]
[310753546,1704708640457,-57012.08344484,0.00020215,2]
[310753547,1704708640466,-522.12744708,0.00020217,2]
[310753548,1704708640475,-348.27371734,0.00020217,2]
[310753549,1704708640484,-673.6921395,0.00020217,2]
[310753550,1704708640493,-606.65446099,0.00020217,2]
[310753551,1704708640502,-254.89825644,0.00020217,2]
[310753552,1704708640511,-2033.84368768,0.00020217,2]
[310753554,1704708640520,-2469.1042749,0.00020217,2]
[310753555,1704708640529,-155.1637672,0.00020217,2]
[310753556,1704708640538,-752.0414654,0.00020217,2]
[310753557,1704708640548,-310.32279367,0.00020217,2]
[310753558,1704708640558,-154.89156354,0.00020217,2]
[310753559,1704708640566,-674.60658798,0.00020217,2]
[310753560,1704708640575,-607.09023842,0.00020218,2]
[310753561,1704708640584,-154.87609912,0.00020218,2]
[310753562,1704708640593,-200.0,0.00020218,2]
[310753563,1704708640602,-7859.59217884,0.00020218,2]
[310753564,1704708640612,-2725.48762255,0.00020218,2]
[310753565,1704708640621,-256.1444968,0.00020224,2]
[310753566,1704708640630,-157.15420995,0.00020519,2]
[310753567,1704708640641,-157.15420995,0.00020522,2]
[310753568,1704708640650,-6232.0845075,0.00020636,2]
[310753569,1704708640660,-14788.10616192,0.00020899,2]
[310753570,1704708640670,-450.95820365,0.00020899,2]
[310753571,1704708640679,-239.40343983,0.00020899,2]
[310753572,1704708640689,-2029.06228573,0.00020899,2]
[310753573,1704708640699,-586.81733784,0.00020899,2]
[310753574,1704708640711,-264.75182318,0.00020899,2]
[310753575,1704708640720,-872.16543446,0.00020899,2]
[310753576,1704708640729,-326.5926711,0.00021,2]
[310753577,1704708640739,-154.82968734,0.00021903,2]
[310753578,1704708640750,-273.88598646,0.00021912,2]
[310753579,1704708640758,-520.2185,0.00021912,2]
[310753580,1704708640769,-169.30485495,0.00021912,2]
[310753581,1704708640781,-301.06112899,0.00021912,2]
[310753582,1704708640790,-1997.87085395,0.00021912,2]
[310753584,1704708640800,-343.85410073,0.00021912,2]
[310753585,1704708640809,-235.65931109,0.00021912,2]
[310753586,1704708640818,-260.52315207,0.00021912,2]
[310753587,1704708640828,-1197.19529008,0.00021912,2]
[310753588,1704708640837,-802.36801822,0.00021912,2]
[310753589,1704708640846,-309.65937468,0.00021912,2]
[310753590,1704708640855,-2097.87650643,0.00021912,2]
[310753591,1704708640864,-162.6816687,0.00021912,2]
[310753592,1704708640873,-282.43600601,0.00021912,2]
[310753593,1704708640882,-397.41380733,0.00021912,2]
[310753594,1704708640892,-1586.54763631,0.00021912,2]
[310753595,1704708640900,-172.05599436,0.00021913,2]
[310753596,1704708640910,-297.63747051,0.00021913,2]
[310753597,1704708640919,-860.12683361,0.00021913,2]
[310753598,1704708640928,-323.94360327,0.00021913,2]
[310753599,1704708640938,-1978.03087711,0.00021913,2]
[310753600,1704708640947,-166.666666,0.00021918,2]
[310753601,1704708640955,-756.96799776,0.00023499,2]
[310753602,1704708640964,-1734.92810055,0.00023499,2]
[310753603,1704708640974,-294.29289612,0.00023499,2]
[310753604,1704708640982,-1635.34826036,0.00023499,2]
[310753605,1704708640991,-209.17366121,0.00023499,2]
[310753606,1704708641001,-268.43589871,0.00023499,2]
[310753607,1704708641010,-309.65937468,0.00023499,2]
[310753608,1704708641020,-155.04108898,0.000235,2]
[310753609,1704708641031,-154.82968734,0.00023501,2]
[310753610,1704708641042,-41470.12567996,0.00023501,2]
[310753611,1704708641051,-300.0,0.00023501,2]
[310753612,1704708641061,-256.14449676,0.00023605,2]
[310753613,1704708641071,-1998.20144924,0.00023998,2]
[310753614,1704708641080,-166.666666,0.00024482,2]
[310753615,1704708641090,-176.330259,0.00024666,2]
[310753616,1704708641099,-309.65937468,0.00024829,2]
[310753617,1704708641108,-901.30981836,0.00024829,2]
[310753618,1704708641118,-309.65937468,0.00024829,2]
[310753619,1704708641126,-642.65877806,0.00024829,2]
[310753620,1704708641136,-1577.96610455,0.00024829,2]
[310753621,1704708641145,-360.56828888,0.00024835,2]
[310753622,1704708641154,-309.65937468,0.0002484,2]
[310753623,1704708641164,-155.13768068,0.0002484,2]
[310753624,1704708641174,-256.14449676,0.00026987,2]
[310753625,1704708641184,-1318.74435395,0.00027511,2]
[310753626,1704708641194,-395.60190496,0.00027511,2]
[310753627,1704708641203,-763.43715059,0.00027511,2]
[310753628,1704708641212,-2926.48008104,0.00027511,2]
[310753629,1704708641222,-256.14449676,0.00030368,2]
[310753630,1704708641231,-9431.63624703,0.00031,4]
[310753631,1704708641241,-542.37895057,0.00033,7]
[310753632,1704708641251,-177.0,0.00033,2]
[310753633,1704708641260,-157.41108533,0.00033472,4]
[310753634,1704708641270,-309.70578029,0.00033484,4]
[310753635,1704708641279,-657.434484,0.000335,2]
[310753636,1704708641288,-256.14449676,0.00033749,2]
[310753637,1704708641299,-578.50055777,0.00033846,10]
[310753638,1704708641309,-616.26699611,0.00033848,3]
[310753639,1704708641319,-18851.38599286,0.00033849,4]
[310753640,1704708641328,-155.03805122,0.00033849,4]
[310753641,1704708641337,-1000.0,0.00034,7]
[310753642,1704708641346,-250.0,0.00034,2]
[310753643,1704708641355,-1797.21914814,0.00034198,4]
[310753644,1704708641365,-4000.0,0.00034521,2]
[310753645,1704708641374,-154.82968734,0.00034701,5]
[310753646,1704708641383,-57470.36256186,0.00034797,2]
[310753647,1704708641393,-223.73536763,0.00034893,4]
[310753648,1704708641402,-506.70797522,0.00034893,4]
[310753649,1704708641411,-155.74216534,0.00034893,4]
[310753650,1704708641421,-158.49535403,0.00034893,4]
[310753651,1704708641430,-241.96569398,0.00034893,4]
[310753652,1704708641438,-275.23122514,0.00034893,4]
[310753653,1704708641447,-274.71413652,0.00034893,4]
[310753654,1704708641456,-309.65937468,0.00034893,4]
[310753655,1704708641466,-333.0688525,0.00034893,4]
[310753656,1704708641474,-1212.41206683,0.00034893,4]
[310753657,1704708641484,-1289.91196152,0.00034893,4]
[310753659,1704708641492,-469.27046295,0.00034893,2]
[310753660,1704708641501,-163.7910347,0.00034894,4]
[310753662,1704708641510,-2068.68169854,0.00034894,4]
[310753663,1704708641519,-11002.48716459,0.00034895,4]
[310753664,1704708641528,-192.00578741,0.00034895,4]
[310753665,1704708641538,-250.58146688,0.00034895,4]
[310753666,1704708641549,-155.78549838,0.00034895,4]
[310753667,1704708641558,-658.69478041,0.00034896,4]
[310753668,1704708641569,-1574.6122842,0.00034896,4]
[310753669,1704708641578,-165.14746576,0.00034896,4]
[310753670,1704708641588,-5223.54044921,0.00034897,2]
[310753671,1704708641597,-1000.0,0.00034956,2]
[310753672,1704708641606,-155.73726172,0.00034996,4]
[310753674,1704708641616,-613.7235784,0.00034996,4]
[310753675,1704708641625,-155.78415184,0.00034996,4]
[310753676,1704708641634,-155.27733166,0.00034996,4]
[310753677,1704708641643,-155.76568917,0.00034998,4]
[310753678,1704708641653,-414.94974673,0.00035,4]
[310753679,1704708641662,-48312.91500471,0.00035,2]
[310753680,1704708641672,-976.16286123,0.00035078,2]
[310753682,1704708641681,-1514.168616,0.000351,2]